[Event "Krakow Championship-A 2022"]
[Site "Krakow"]
[Date "2022.06.26"]
[Round "3.5"]
[White "Kyc, Jerzy"]
[Black "Fus, Jakub"]
[Result "0-1"]
[ECO "C95"]
[WhiteElo "2213"]
[BlackElo "2378"]
[Annotator "TA"]
[PlyCount "148"]
[EventDate "2022.06.25"]
[EventType "swiss"]
[EventCountry "POL"]
[SourceTitle "playchess.com"]
[Source "ChessBase"]
[SourceQuality "1"]
[TimeControl "40/5400+30:1800+30"]

{[%evp 31,148,0,6,0,-3,-7,-16,-15,0,-10,-18,-22,-19,-18,-23,-32,-38,-38,-17,-24,-21,-20,-21,-27,-8,-7,-7,-9,-10,-8,0,0,-2,-10,0,0,0,0,14,0,0,0,0,0,0,0,0,0,0,0,0,-27,-28,-77,-48,-64,-15,-16,-12,-12,-12,-14,-12,-13,-14,-14,-8,-14,-14,-8,-8,-8,0,0,0,0,0,-32,-8,-8,-8,-67,-33,-134,-134,-134,-134,-134,-134,-134,-134,-134,-134,-134,-134,-134,-134,-134,-134,-134,-134,-134,-134,-134,-134,-134,-134,-134,-134,-134,-134,-134,-134,-134,0,-29990,-29991,-29991,-29992]} 1. e4 {[%emt 0:00:02]} e5 {[%emt 0:00:25]} 2. Nf3 {[%emt 0:00:03]} Nc6 {[%emt 0:00:13]} 3. Bb5 {[%emt 0:00:03]} a6 {[%emt 0:00:22]} 4. Ba4 {[%emt 0:00:01]} Nf6 {[%emt 0:00:20]} 5. O-O {[%emt 0:00:14]} Be7 {[%emt 0:00:26]} 6. Re1 {[%emt 0:00:05]} b5 {[%emt 0:00:12]} 7. Bb3 {[%emt 0:00:01]} d6 {[%emt 0:00:25]} 8. c3 {[%emt 0:00:04]} O-O {[%emt 0:00:28]} 9. h3 {[%emt 0:00:09]} Nb8 {[%emt 0:00:39]} 10. d4 {[%emt 0:00:33]} Nbd7 {[%emt 0:00:07]} 11. Nbd2 {[%emt 0:00:39]} Bb7 {[%emt 0:01:46]} 12. a4 {[%emt 0:00:30]} c5 {[%emt 0:01:32]} 13. Bc2 {[%emt 0:05:44]} Re8 {[%emt 0:04:31]} 14. Nf1 {[%emt 0:00:13]} Bf8 {[%emt 0:00:14]} 15. Ng3 {[%emt 0:00:06]} g6 {[%emt 0:07:24]} 16. dxe5 {[%emt 0:02:02]} dxe5 {[%emt 0:00:36]} 17. Be3 {[%emt 0:02:06] [#] C95: Closed Ruy Lopez: Breyer Variation with 10 d4.} Qc7 $146 {[%emt 0:05:11]} ({Predecessor:} 17... c4 18. axb5 axb5 19. b4 Rxa1 20. Qxa1 Qa8 21. Nd2 h5 22. f3 Qxa1 23. Rxa1 Ra8 24. Rxa8 Bxa8 25. Ngf1 Bc6 {½-½ (25) Zayan,O (2208)-Ibrahim,H (2334) Cairo 2016}) 18. Qc1 {[%emt 0:01:25]} c4 {[%emt 0:06:23]} 19. Bh6 {[%emt 0:00:51] The position is equal.} Qc5 {[%emt 0:04:42]} 20. Bxf8 {[%emt 0:09:51]} Qxf8 {[%emt 0:03:06]} 21. axb5 {[%emt 0:02:45]} axb5 {[%emt 0:00:09]} 22. b4 {[%emt 0:06:55]} cxb3 {[%emt 0:02:04]} 23. Rxa8 {[%emt 0:01:43]} Rxa8 {[%emt 0:00:46]} 24. Bxb3 {[%emt 0:00:02]} Nc5 {[%emt 0:00:21]} (24... Qa3 {is interesting.} 25. Qd1 Kg7 26. Ng5 Ra6) 25. Bc2 {[%emt 0:03:31]} Nfd7 {[%emt 0:01:09]} 26. Qb2 {[%emt 0:08:36]} Bc6 {[%emt 0:02:54]} 27. Ra1 {[%emt 0:18:59]} f6 {[%emt 0:16:16]} 28. Rxa8 {[%emt 0:04:00]} Qxa8 {[%emt 0:00:34]} 29. Nd2 {[%emt 0:03:17]} Kg7 {[%emt 0:02:10]} 30. Ngf1 {[%emt 0:13:31]} Na4 {[%emt 0:07:05]} ({Much less strong is} 30... Nxe4 31. Nxe4 Bxe4 32. Bxe4 Qxe4 33. Qxb5 $14) 31. Qb4 {[%emt 0:02:17]} Qf8 {[%emt 0:00:08]} 32. Nb1 {[%emt 0:09:08]} Qc5 {[%emt 0:14:52]} 33. Ne3 {[%emt 0:05:13]} Kf8 {[%emt 0:02:25]} 34. Kf1 {[%emt 0:00:48]} Ke7 {[%emt 0:00:47]} 35. Ke2 {[%emt 0:00:29]} (35. Qb3 {keeps more tension.} Kd8 36. Qg8+ Kc7 37. Qxh7 Nxc3 38. Nxc3 Qxc3 39. Qxg6 b4 40. Qf7) 35... Qd6 {[%emt 0:02:44]} 36. Qxd6+ {[%emt 0:01:28]} (36. f3 {looks sharper.} Ndc5 37. Kf1 Na6 38. Qxd6+ Kxd6 39. Bb3) 36... Kxd6 {[%emt 0:00:04]} 37. h4 {[%emt 0:00:47]} Ndb6 {[%emt 0:03:18]} 38. f3 {[%emt 0:00:17]} Bd7 {[%emt 0:00:19]} 39. Bb3 {[%emt 0:00:31]} f5 {[%emt 0:01:43]} 40. exf5 {[%emt 0:00:30]} gxf5 {[%emt 0:00:06]} 41. Kd2 {[%emt 0:30:57]} f4 {[%emt 0:30:28]} 42. Nc2 {[%emt 0:00:00]} (42. Nd1 $11) 42... Nb2 {[%emt 0:00:00]} 43. Nba3 {[%emt 0:00:00]} Kc5 {[%emt 0:00:00] Black is more active.} (43... N2c4+ $15 {feels stronger.} 44. Bxc4 bxc4) 44. Nb4 $11 {[%emt 0:00:00]} N2c4+ {[%emt 0:00:00]} 45. Nxc4 {[%emt 0:00:00]} Nxc4+ {[%emt 0:00:00][%mdl 4096] Endgame KBN-KBN} 46. Ke2 {[%emt 0:00:00]} Bf5 {[%emt 0:00:00]} 47. Na6+ {[%emt 0:00:00]} Kd6 {[%emt 0:00:00]} 48. Nb4 {[%emt 0:00:00]} Bg6 {[%emt 0:00:00]} 49. Kf2 {[%emt 0:02:03]} Nd2 {[%emt 0:00:00]} 50. Bg8 {[%emt 0:00:43]} Nb1 {[%emt 0:00:00]} 51. Na2 {[%emt 0:00:26]} Kc5 {[%emt 0:00:00]} 52. g4 {[%emt 0:01:54]} fxg3+ {[%emt 0:00:31]} 53. Kxg3 {[%emt 0:00:02]} Bd3 {[%emt 0:00:25] [#] And now ...Bc4 would win.} 54. f4 {[%emt 0:00:38]} exf4+ {[%emt 0:00:17]} 55. Kxf4 {[%emt 0:00:02]} Bc4 {[%emt 0:00:29]} 56. Bxc4 {[%emt 0:01:22]} (56. Bxh7 $11 Bxa2 57. h5) 56... Kxc4 {[%emt 0:00:03] KN-KN} 57. Kg5 {[%emt 0:00:10]} (57. Nb4 $15) 57... Nxc3 $17 {[%emt 0:00:06]} 58. Kh6 {[%emt 0:01:06]} Nxa2 {[%emt 0:04:33]} 59. Kxh7 {[%emt 0:00:01] KN-KP} b4 {[%emt 0:02:39]} 60. h5 {[%emt 0:00:02]} b3 {[%emt 0:00:05]} 61. h6 {[%emt 0:00:44]} b2 {[%emt 0:00:08]} 62. Kg7 {[%emt 0:00:46]} b1=Q {[%emt 0:00:07]} 63. h7 {[%emt 0:00:02]} Qb7+ {[%emt 0:00:08]} 64. Kg8 {[%emt 0:00:03]} Qc8+ {[%emt 0:00:05]} 65. Kg7 {[%emt 0:00:10]} Qd7+ {[%emt 0:00:12]} 66. Kg8 {[%emt 0:00:04]} Qe8+ {[%emt 0:01:49]} 67. Kg7 {[%emt 0:00:02]} Qe7+ {[%emt 0:00:04]} 68. Kg8 {[%emt 0:00:02]} Nc3 {[%emt 0:01:56]} 69. h8=Q {[%emt 0:00:13]} Ne4 {[%emt 0:00:41]} 70. Qh6 {[%emt 0:00:50]} Kb5 {[%emt 0:03:33] ( -> ...Nf6+)} 71. Qh5+ {[%emt 0:01:49]} Ng5 {[%emt 0:01:53]} 72. Qg6 {[%emt 0:00:39]} Ne4 {[%emt 0:01:01]} ({Black should try} 72... Qe5 $17 73. Qd3+ Kc5) 73. Qh6 $2 {[%emt 0:01:15][%mdl 8192]} (73. Qh5+ $11 Nc5 74. Qf5) 73... Nf6+ {[%emt 0:00:17]} 74. Kh8 {[%emt 0:00:01] [#]} Ka6 $1 {[%emt 0:01:50] Weighted Error Value: White=0.11 (very precise) /Black=0.06 (flawless)} 0-1

[Event "Krakow Championship-A 2022"]
[Site "Krakow"]
[Date "2022.06.26"]
[Round "3.6"]
[White "Rudolf, Michal"]
[Black "Danielyan, Vahe"]
[Result "1/2-1/2"]
[ECO "D20"]
[WhiteElo "2361"]
[BlackElo "2324"]
[Annotator "TA"]
[PlyCount "109"]
[EventDate "2022.06.25"]
[EventType "swiss"]
[EventCountry "POL"]
[SourceTitle "playchess.com"]
[Source "ChessBase"]
[SourceQuality "1"]
[TimeControl "40/5400+30:1800+30"]

{[%evp 16,109,37,28,30,31,43,36,35,23,93,35,35,30,19,21,12,19,16,18,26,26,22,0,6,-22,66,59,138,76,69,63,148,12,20,-206,-210,-324,-301,-302,-293,-369,-347,-366,-360,-345,-143,-148,-151,-143,-145,-171,-151,-153,-140,-129,-53,-53,-52,-52,-52,-52,0,-271,-175,-168,-175,-283,-275,-763,-514,-495,-414,-568,0,0,0,0,0,0,0,0,0,0,0,0,0,0,0,0,0,0,0,0,0,0]} 1. d4 {[%emt 0:01:16]} d5 {[%emt 0:00:39]} 2. c4 {[%emt 0:00:30]} dxc4 {[%emt 0:00:36]} 3. e3 {[%emt 0:00:52]} Nf6 {[%emt 0:00:18]} 4. Bxc4 {[%emt 0:00:07]} e6 {[%emt 0:00:03]} 5. Nf3 {[%emt 0:00:28]} a6 {[%emt 0:00:05]} 6. O-O {[%emt 0:00:30]} Nbd7 {[%emt 0:00:03]} 7. a4 {[%emt 0:03:51]} c5 {[%emt 0:00:51]} 8. Nc3 {[%emt 0:08:38]} Qc7 {[%emt 0:00:05]} 9. Qe2 {[%emt 0:02:46]} Bd6 {[%emt 0:00:10] D27: Queen's Gambit Accepted: Classical main line: 7 e4!? and 7 a4.} 10. dxc5 {[%emt 0:05:23]} Bxc5 {[%emt 0:01:11]} 11. e4 {[%emt 0:00:27] And now e5 would win.} Ng4 {[%emt 0:03:06] Prevents e5. White is slightly better.} 12. Ba2 {[%emt 0:07:05] [#]} h5 $146 {[%emt 0:01:48]} (12... O-O $11) ({Predecessor:} 12... O-O 13. Bg5 Nde5 14. Nxe5 Nxe5 15. Bf4 Bd6 16. Rac1 Nc6 17. Bxd6 Qxd6 18. Rfd1 Qc7 {½-½ (37) Voiteanu,C (2213)-Toma,R (2262) Calimanesti 2014}) 13. Bg5 {[%emt 0:06:08]} (13. h3 $16) 13... Nde5 $14 {[%emt 0:05:10]} 14. Bf4 {[%emt 0:00:31]} Bd6 {[%emt 0:00:50]} 15. Nxe5 {[%emt 0:02:22]} Bxe5 {[%emt 0:00:10]} 16. Bxe5 {[%emt 0:00:46]} Qxe5 {[%emt 0:00:18][%csl Gg4][%cal Re5h2]} 17. f4 {[%emt 0:00:43]} Qc5+ {[%emt 0:00:32]} 18. Kh1 {[%emt 0:00:06]} Bd7 {[%emt 0:00:48]} 19. Rac1 {[%emt 0:02:07][%cal Oc3d5] aiming for Nd5!} Rc8 {[%emt 0:01:55][%cal Od7a4]} 20. Qd2 {[%emt 0:02:31]} Qe7 {[%emt 0:02:32]} (20... Qe3 $11 21. Rcd1 Rd8) 21. h3 $1 {[%emt 0:03:18]} Bc6 {[%emt 0:03:56]} (21... Rd8 $1 $14) 22. Qe1 {[%emt 0:11:15]} (22. hxg4 $6 hxg4+ 23. Kg1 g3 $11) (22. f5 $142 $1) 22... Rd8 {[%emt 0:06:29]} 23. Qg3 {[%emt 0:12:28]} (23. hxg4 $2 hxg4+ 24. Kg1 Qc5+ 25. Qf2 Qh5 $19) 23... Nf6 {[%emt 0:06:19] [#]} ({Black should play} 23... g6 $1 $14) 24. e5 {[%emt 0:01:29]} (24. Qxg7 Rg8 25. Qh6 Rd2 $17) ({White must play} 24. f5 $1 $16) 24... h4 $11 {[%emt 0:01:02]} 25. Qg5 {[%emt 0:09:33]} (25. exf6 hxg3 26. fxe7 Rd2 $19) (25. Qxg7 $11 Rg8 26. exf6 Rxg7 27. fxg7 (27. fxe7 $2 Bxg2+ 28. Kg1 Rd2 $19)) 25... Nh5 $19 {[%emt 0:00:41]} 26. Qxe7+ {[%emt 0:03:33]} (26. Rfd1 $142) 26... Kxe7 {[%emt 0:00:05]} 27. Rf2 {[%emt 0:00:17] Prevents Rd2.} Rd4 {[%emt 0:00:34][%csl LRa4,LRf4]} 28. Ne2 {[%emt 0:02:21]} Rd2 {[%emt 0:00:15]} 29. Kg1 {[%emt 0:01:26]} Rhd8 {[%emt 0:00:22]} ({Not} 29... Rxb2 30. Nd4 Rxf2 31. Kxf2 $17) 30. Bc4 {[%emt 0:01:48]} Rxb2 {[%emt 0:00:49]} (30... Bxa4 $19 {has better winning chances.} 31. b4 Rd1+ 32. Rf1 Rxc1 33. Rxc1 b5) 31. Nd4 $17 {[%emt 0:02:07]} Rxf2 {[%emt 0:02:57]} ({Reject} 31... Rxd4 $6 32. Rxb2 Kd7 33. f5 $11) 32. Nxc6+ {[%emt 0:00:05]} bxc6 {[%emt 0:00:02]} 33. Kxf2 {[%emt 0:00:06][%mdl 4096] Endgame KRB-KRN} a5 {[%emt 0:01:45]} ({Stronger than} 33... Nxf4 34. Bxa6 g5 35. g3 hxg3+ 36. Kxg3 $17) 34. Ke3 {[%emt 0:00:52]} Rb8 {[%emt 0:00:55]} 35. Bd3 {[%emt 0:01:08] [#]} Rb3 {[%emt 0:01:48]} (35... Rb4 $1 $17 36. Rc4 c5) 36. Rc5 $15 {[%emt 0:04:52] [#]} Nxf4 $1 {[%emt 0:05:02]} 37. Kxf4 {[%emt 0:00:07] Threatens to win with Ke3.} Rxd3 {[%emt 0:00:03]} 38. Rxa5 {[%emt 0:00:05] KR-KR} g6 {[%emt 0:01:21]} ({Black should try} 38... c5 $15) 39. Ke4 $2 {[%emt 0:03:18][%mdl 8192]} (39. Kg5 $1 $11 {and White stays safe.}) 39... Rd2 {[%emt 0:00:20]} 40. Ra7+ {[%emt 0:01:11]} Kf8 {[%emt 0:00:07]} 41. a5 {[%emt 0:03:10]} (41. Kf3 $142) 41... Rxg2 $19 {[%emt 0:00:20] Hoping for ...Rg3.} 42. Kd4 $2 {[%emt 0:00:04]} (42. Ra8+ Kg7 43. a6) 42... Ra2 {[%emt 0:00:51]} 43. Kc5 {[%emt 0:00:11]} g5 {[%emt 0:00:47]} 44. Kb6 {[%emt 0:01:03]} c5 $2 {[%emt 0:03:21]} (44... Rh2 $19 45. a6 Rxh3) 45. a6 $11 {[%emt 0:07:14] The position is equal.} g4 {[%emt 0:18:35]} 46. hxg4 {[%emt 0:00:11]} h3 {[%emt 0:01:33]} 47. Rd7 {[%emt 0:00:06]} h2 {[%emt 0:00:11]} 48. Rd1 {[%emt 0:00:03]} c4 {[%emt 0:00:32][%cal Bc5c4,Bc4c3,Bc3c2][%mdl 32]} 49. a7 {[%emt 0:00:54]} c3 {[%emt 0:00:08]} 50. Kb7 {[%emt 0:01:52]} Rb2+ {[%emt 0:01:09]} 51. Kc7 {[%emt 0:00:36]} Ra2 {[%emt 0:00:33] ( -> ...c2)} 52. Kb7 {[%emt 0:00:18]} c2 {[%emt 0:08:36]} 53. Rf1 {[%emt 0:02:44]} Rb2+ {[%emt 0:02:42]} 54. Ka6 {[%emt 0:00:05]} Ra2+ {[%emt 0:01:12]} (54... Kg7 $5 55. a8=Q Ra2+ 56. Kb7 Rxa8 57. Kxa8 Kh6 $11) 55. Kb7 {[%emt 0:00:04] White happily takes the draw.  Weighted Error Value: White=0.36/Black=0.35} 1/2-1/2

[Event "Krakow Championship-A 2022"]
[Site "Krakow"]
[Date "2022.06.26"]
[Round "3.7"]
[White "Turcan, Richard"]
[Black "Rozentalis, Eduardas"]
[Result "0-1"]
[ECO "E10"]
[WhiteElo "2278"]
[BlackElo "2523"]
[Annotator "TA"]
[PlyCount "74"]
[EventDate "2022.06.25"]
[EventType "swiss"]
[EventCountry "POL"]
[SourceTitle "playchess.com"]
[Source "ChessBase"]
[SourceQuality "1"]
[TimeControl "40/5400+30:1800+30"]

{[%evp 14,74,25,-19,0,-9,15,14,13,9,8,10,14,-18,16,-39,-39,-43,-17,-6,0,0,44,-21,-22,-13,0,-19,0,-10,-1,-14,33,27,46,48,39,31,46,0,0,-15,-5,-4,-16,-164,-159,-387,-370,-468,-453,-562,-567,-555,-555,-539,-514,-816,-686,-648,-627,-562,-488]} 1. d4 {[%emt 0:05:43]} Nf6 {[%emt 0:00:17]} 2. c4 {[%emt 0:00:27]} e6 {[%emt 0:00:05]} 3. Nf3 {[%emt 0:00:14]} Nc6 {[%emt 0:00:42]} 4. Nc3 {[%emt 0:04:15]} Bb4 {[%emt 0:01:37]} 5. Bg5 {[%emt 0:04:52]} h6 {[%emt 0:00:53]} 6. Bh4 {[%emt 0:01:02]} g5 {[%emt 0:01:41]} 7. Bg3 {[%emt 0:00:29]} Ne4 {[%emt 0:00:35]} 8. Qd3 {[%emt 0:07:47]} (8. Qc2 $5 {[%cal Rc2e4]} d5 9. a3 Bxc3+ 10. bxc3 $11) 8... Bxc3+ {[%emt 0:02:38] E30: Nimzo-Indian: Leningrad Variation.} 9. bxc3 {[%emt 0:00:09]} Nxg3 {[%emt 0:00:05]} 10. hxg3 {[%emt 0:01:00]} Qf6 {[%emt 0:00:25] The position is equal.} 11. e3 {[%emt 0:08:00]} d6 {[%emt 0:01:17] [#]} 12. Qc2 $146 {[%emt 0:09:00]} ({Predecessor:} 12. Be2 Bd7 13. Nd2 Qe7 14. g4 Nd8 15. Bf3 Bc6 16. d5 exd5 17. cxd5 Bd7 18. Qd4 {½-½ (63) Lindblom,S (1987)-Borresen,G (2143) Asker 2003}) 12... Bd7 {[%emt 0:04:01]} 13. Bd3 {[%emt 0:04:14]} e5 {[%emt 0:00:51]} 14. O-O-O {[%emt 0:06:29]} (14. Be4 $11) 14... O-O-O $15 {[%emt 0:02:19]} 15. Rdf1 {[%emt 0:10:31]} Rhe8 {[%emt 0:07:08]} 16. Nd2 {[%emt 0:02:49]} exd4 {[%emt 0:01:10]} 17. exd4 {[%emt 0:00:54]} Re7 {[%emt 0:04:10]} 18. f4 {[%emt 0:03:53]} (18. f3 $14) 18... gxf4 $11 {[%emt 0:01:10]} 19. gxf4 {[%emt 0:01:44]} Qg7 {[%emt 0:00:48]} 20. Nf3 {[%emt 0:08:18]} (20. f5 $5 {[%cal Rf5f6]} Re3 21. Ne4 $11) 20... Rde8 {[%emt 0:01:58]} 21. Qd2 {[%emt 0:03:18]} Bg4 {[%emt 0:20:06]} 22. f5 {[%emt 0:06:28] [#] Strongly threatening f6.} Bxf3 {[%emt 0:01:13]} (22... Re3 $11) 23. Rxf3 $14 {[%emt 0:01:09] aiming for f6.} f6 $1 {[%emt 0:01:27]} 24. Rfh3 {[%emt 0:03:11]} Na5 {[%emt 0:06:57]} 25. Rxh6 {[%emt 0:02:03][%cal Og2g4]} Qf7 {[%emt 0:00:37]} 26. Rh8 {[%emt 0:03:52]} (26. d5 $1 $14 {is more appropriate.}) 26... Nxc4 $11 {[%emt 0:02:13]} 27. Qh6 {[%emt 0:00:09]} Rxh8 {[%emt 0:05:46]} 28. Qxh8+ {[%emt 0:00:02]} Kd7 {[%emt 0:00:06]} 29. Qb8 {[%emt 0:01:43] [#]} (29. g4 $11 {and White stays safe.}) 29... Qd5 $1 $19 {[%emt 0:01:19] Really sharp!} 30. Qxa7 $2 {[%emt 0:00:39] This move loses the game for White.} (30. Bxc4 $17 {was necessary.} Qxc4 31. Qxb7) 30... Qxg2 {[%emt 0:01:24]} 31. Qa4+ {[%emt 0:00:11]} c6 {[%emt 0:00:18] ( -> ...Qd2+). Black is clearly winning.} 32. Bxc4 {[%emt 0:00:27] Be6+ is the strong threat.} Qxh1+ {[%emt 0:00:13] KQR-KQB} 33. Kb2 {[%emt 0:00:06]} d5 {[%emt 0:01:05]} 34. Bd3 {[%emt 0:00:22]} Qh2+ {[%emt 0:01:25]} 35. Bc2 {[%emt 0:00:39]} (35. Qc2 $142 Qg3 36. a4) 35... Re2 {[%emt 0:03:11] Hoping for ...Qf2.} 36. Qb3 {[%emt 0:00:20]} Kc7 {[%emt 0:06:09]} 37. a4 {[%emt 0:00:52]} Qf2 {[%emt 0:01:18] Weighted Error Value: White=0.54/Black=0.08 (flawless)} 0-1

[Event "Krakow Championship-A 2022"]
[Site "Krakow"]
[Date "2022.06.26"]
[Round "3.8"]
[White "Zwardon, Vojtech"]
[Black "Liu, Casper"]
[Result "1-0"]
[ECO "A11"]
[WhiteElo "2482"]
[BlackElo "2218"]
[Annotator "TA"]
[PlyCount "92"]
[EventDate "2022.06.25"]
[EventType "swiss"]
[EventCountry "POL"]
[SourceTitle "playchess.com"]
[Source "ChessBase"]
[SourceQuality "1"]
[TimeControl "40/5400+30:1800+30"]

{[%evp 15,92,18,0,0,16,0,12,0,33,13,60,44,62,52,52,47,95,50,53,62,50,39,63,61,51,51,51,51,51,48,48,55,54,63,73,59,131,55,58,45,31,31,87,81,112,132,175,194,250,249,304,289,443,443,467,469,492,473,726,723,706,697,708,681,631,582,750,750,958,845,1555,1395,2099,2142,5218,5065,5054,4909,1650]} 1. c4 {[%emt 0:09:11]} c6 {[%emt 0:00:26]} 2. Nc3 {[%emt 0:00:06]} d5 {[%emt 0:00:13]} 3. d4 {[%emt 0:00:02]} Nf6 {[%emt 0:00:07]} 4. cxd5 {[%emt 0:00:02]} cxd5 {[%emt 0:00:11]} 5. Bf4 {[%emt 0:00:02]} Nc6 {[%emt 0:00:12]} 6. e3 {[%emt 0:00:05]} a6 {[%emt 0:00:36]} 7. Rc1 {[%emt 0:00:03]} Bf5 {[%emt 0:00:47]} 8. Nf3 {[%emt 0:00:04]} Rc8 {[%emt 0:00:08]} 9. Ne5 {[%emt 0:00:11] D13: Slav Defence: Exchange variation without ...Bf5.} Nxe5 {[%emt 0:03:54]} 10. dxe5 $1 {[%emt 0:00:05] 10.dxe5 scores better than 10.Bxe5.} Ne4 {[%emt 0:00:41]} 11. Nxe4 {[%emt 0:00:08] The position is equal.} Rxc1 {[%emt 0:01:22]} 12. Qxc1 {[%emt 0:00:02] Black must now prevent Ng3.} Bxe4 {[%emt 0:01:34]} (12... dxe4 $11 {is more appropriate.} 13. Qc3 h6) 13. e6 $1 $14 {[%emt 0:00:06]} Qa5+ {[%emt 0:04:10]} 14. Ke2 {[%emt 0:00:07] And now Qc8+ would win.} fxe6 {[%emt 0:02:49]} 15. f3 {[%emt 0:01:02]} Bg6 {[%emt 0:07:39]} (15... Bf5 $14) 16. Be5 {[%emt 0:00:29] [#]} Qxa2 $146 {[%emt 0:01:47]} ({Predecessor:} 16... Kd8 17. Kf2 Rg8 18. Be2 Be8 19. b4 Qb6 20. Qc3 Qc6 21. Qb2 g6 22. Rc1 Qb6 23. Bc7+ Qxc7 24. Rxc7 Kxc7 25. Qe5+ Kd7 26. Qb8 {1-0 (26) Huzman,A (2581)-Zhao,Z (2410) Mallorca 2004}) 17. Kf2 {[%emt 0:00:51]} Qb3 {[%emt 0:03:45]} 18. Be2 {[%emt 0:00:42]} Bd3 {[%emt 0:05:15]} 19. Bxd3 {[%emt 0:03:35]} Qxd3 {[%emt 0:00:02]} 20. Rd1 {[%emt 0:00:15]} Qc4 {[%emt 0:12:30]} 21. Qxc4 {[%emt 0:00:06]} dxc4 {[%emt 0:00:07][%mdl 4096] Endgame KRB-KRB} 22. Rc1 {[%emt 0:00:01]} Rg8 {[%emt 0:13:29]} 23. Rxc4 {[%emt 0:00:13]} g6 {[%emt 0:00:50]} 24. Rc7 {[%emt 0:00:25]} Kf7 {[%emt 0:00:25]} 25. Rxb7 {[%emt 0:00:31] White is more active.} Bh6 {[%emt 0:00:04]} (25... Bg7 $1 $14 26. Bxg7 Rxg7) 26. Bd6 {[%emt 0:04:58]} (26. Ra7 $16) 26... Bg5 {[%emt 0:02:08]} 27. f4 {[%emt 0:00:35][%cal Bf3f4,Bf4e5][%mdl 32]} Bf6 {[%emt 0:00:44]} 28. e4 {[%emt 0:00:12]} e5 {[%emt 0:14:38]} ({Black should try} 28... Bd4+ $1 $14 29. Ke2 Re8) 29. fxe5 $16 {[%emt 0:01:12] White leaves nothing to chance now.} Bg5 {[%emt 0:01:39]} 30. Bb4 {[%emt 0:00:33]} Rd8 {[%emt 0:15:02] [#]} 31. g3 $1 {[%emt 0:04:51] h4 is the strong threat.} a5 {[%emt 0:00:45]} (31... Re8 {is a better defense.} 32. Rb6 Bc1) 32. Bxa5 $18 {[%emt 0:00:51]} Rd4 {[%emt 0:00:20] [#]} 33. Bc3 {[%emt 0:06:25]} Rxe4 {[%emt 0:00:05]} (33... Rd3 {was necessary.} 34. h4 Bd2 35. e6+ Kxe6 36. Rb6+ Kf7) 34. Kf3 {[%emt 0:00:08] White is clearly winning.} Rc4 {[%emt 0:02:27]} 35. Bb4 {[%emt 0:02:38]} Ke6 {[%emt 0:04:06]} 36. h4 {[%emt 0:00:12]} Bc1 {[%emt 0:00:02]} (36... Bxh4 $142 37. gxh4 Kxe5 38. Bxe7 h6) 37. Rxe7+ {[%emt 0:00:16]} Kd5 {[%emt 0:00:06]} 38. Bc3 {[%emt 0:00:17]} h5 {[%emt 0:00:22]} 39. Rd7+ {[%emt 0:00:50]} Ke6 {[%emt 0:00:15]} 40. Rg7 {[%emt 0:00:10]} Rg4 {[%emt 0:00:57]} 41. Rb7 {[%emt 0:30:47]} g5 {[%emt 0:30:52]} 42. Rb6+ {[%emt 0:00:04]} Kd5 {[%emt 0:01:39]} 43. Rd6+ {[%emt 0:00:59]} Kc5 {[%emt 0:00:25]} 44. Rd1 {[%emt 0:00:18]} gxh4 {[%emt 0:00:58]} 45. Rxc1 {[%emt 0:00:09]} hxg3 {[%emt 0:00:36]} 46. Rg1 {[%emt 0:00:07]} Kd5 {Weighted Error Value: White=0.07 (flawless) /Black=0.29 (precise)} 1-0

[Event "Krakow Championship-A 2022"]
[Site "Krakow"]
[Date "2022.06.26"]
[Round "3.9"]
[White "Pniaczek, Marek"]
[Black "Leniart, Arkadiusz"]
[Result "0-1"]
[ECO "C55"]
[WhiteElo "2298"]
[BlackElo "2473"]
[Annotator "TA"]
[PlyCount "60"]
[EventDate "2022.06.25"]
[EventType "swiss"]
[EventCountry "POL"]
[SourceTitle "playchess.com"]
[Source "ChessBase"]
[SourceQuality "1"]
[TimeControl "40/5400+30:1800+30"]

{[%evp 21,60,0,0,4,-9,-19,-12,-19,-10,-25,-14,-26,0,0,0,-12,0,-22,-18,-105,-114,-95,-70,-152,-148,-166,-166,-160,-158,-431,-141,-449,-420,-568,-558,-1000,-720,-6207,-6170,-29994,-29995]} 1. e4 {[%emt 0:00:03]} e5 {[%emt 0:00:37]} 2. Nf3 {[%emt 0:00:03]} Nc6 {[%emt 0:00:07]} 3. Bc4 {[%emt 0:00:04]} Nf6 {[%emt 0:00:05]} 4. d4 {[%emt 0:00:03]} exd4 {[%emt 0:00:25]} 5. e5 {[%emt 0:00:06]} d5 {[%emt 0:00:22]} 6. Bb5 {[%emt 0:00:05]} Ne4 {[%emt 0:00:06]} 7. Nxd4 {[%emt 0:00:25]} Bd7 {[%emt 0:00:16]} 8. Bxc6 {[%emt 0:00:54]} bxc6 {[%emt 0:00:18]} 9. O-O {[%emt 0:01:35]} Bc5 {[%emt 0:00:35]} 10. Be3 {[%emt 0:03:12]} Qe7 {[%emt 0:01:06]} 11. Re1 {[%emt 0:04:51]} O-O {[%emt 0:03:12]} ({But not} 11... Qxe5 12. f3 $16) 12. f3 {[%emt 0:02:40] C56: Two Knights: 4 d4 exd4 5 0-0 Nxe4.} Ng5 {[%emt 0:00:32]} 13. f4 {[%emt 0:00:10]} Ne4 {[%emt 0:00:05]} 14. Nd2 {[%emt 0:01:04] The position is equal.} f5 $1 {[%emt 0:10:48]} 15. Nxe4 {[%emt 0:19:15]} fxe4 {[%emt 0:04:51]} 16. Qd2 {[%emt 0:01:07]} g5 {[%emt 0:09:05] [#] White must now prevent ...gxf4.} 17. c3 $146 {[%emt 0:11:05]} ({Predecessor:} 17. fxg5 Qxe5 18. c3 Bd6 19. g3 Rf7 20. Rf1 Raf8 21. Rxf7 Rxf7 22. Rf1 Rxf1+ 23. Kxf1 {½-½ (45) Radovanovic,D (2298)-Mastrovasilis,A (2345) Chania 1999}) 17... Bb6 {[%emt 0:05:47]} 18. Rf1 {[%emt 0:07:49]} a5 {[%emt 0:10:32]} 19. fxg5 {[%emt 0:15:02]} Qxe5 {[%emt 0:08:41]} 20. b4 {[%emt 0:06:33]} (20. Kh1 $11 {keeps the balance.}) 20... axb4 $17 {[%emt 0:05:27]} 21. cxb4 {[%emt 0:00:06]} c5 {[%emt 0:08:20]} 22. bxc5 {[%emt 0:00:38]} (22. Ne2 $15) 22... Bxc5 {[%emt 0:00:48]} 23. Nb3 {[%emt 0:00:51]} Bd6 {[%emt 0:01:27][%csl Gd6][%cal Re5h2] The board is on fire. A strong pair of Bishops.} 24. g3 {[%emt 0:00:11] [#]} Bh3 $1 {[%emt 0:04:34]} 25. Bd4 $2 {[%emt 0:02:12]} (25. Rf6 $17) 25... Rxf1+ $40 {[%emt 0:05:25][%mdl 128] Black is out for blood.} 26. Rxf1 {[%emt 0:00:07] White does not recover from this.} e3 $1 {[%emt 0:00:26][%cal Be4e3,Be3e2][%mdl 32] And now ...e2 would win.} 27. Qc2 {[%emt 0:07:36]} Qxg5 {[%emt 0:03:51] aiming for ...Bxg3.} 28. Rf3 {[%emt 0:02:34]} Re8 {[%emt 0:06:02] ( -> ...e2). Active counter play!} 29. Qc6 {[%emt 0:08:12]} Qh5 {[%emt 0:00:27]} 30. g4 {[%emt 0:01:28]} e2 {[%emt 0:00:35] Weighted Error Value: White=1.17/Black=0.19 (very precise)} 0-1